fUST/lending_fUST_20251209
["ID","MTS","AMOUNT","RATE_DAILY","PERIOD"]
[398018867,1765293053613,-3290.24446167,0.00018082,2]
[398018868,1765293053623,-4500.0,0.00018082,2]
[398018869,1765293053633,-4500.0,0.00018082,2]
[398018870,1765293053642,-4500.0,0.00018082,2]
[398018871,1765293053652,-744.46992524,0.00018082,2]
[398018872,1765293053661,-4500.0,0.00018082,2]
[398018873,1765293053671,-166.75,0.000181,2]
[398018874,1765293053681,-5000.0,0.00018204,2]
[398018875,1765293053692,-5000.0,0.00018204,2]
[398018876,1765293053702,-3267.11719939,0.00018204,2]
[398018877,1765293053712,-3516.70798549,0.00018204,2]
[398018878,1765293053721,-5000.0,0.00018204,2]
[398018879,1765293053731,-5000.0,0.00018204,2]
[398018880,1765293053741,-5000.0,0.00018204,2]
[398018881,1765293053750,-172.0,0.00018219,3]
[398018882,1765293053760,-671.38,0.00018272,30]
[398018883,1765293053770,-2000.0,0.0001832,7]
[398018884,1765293053783,-500.0,0.00018356,2]
[398018885,1765293053793,-2670.15706897,0.00018356,2]
[398018886,1765293053802,-739.573918,0.00018493,2]
[398018887,1765293053812,-347.30356795,0.000185,3]
[398018888,1765293053824,-3000.0,0.00018604,2]
[398018889,1765293053840,-150.0,0.0001863,2]
[398018890,1765293053851,-300.0,0.0001863,2]
[398018891,1765293053861,-450.0,0.0001863,2]
[398018892,1765293053870,-600.0,0.0001863,2]
[398018893,1765293053882,-750.0,0.0001863,2]
[398018894,1765293053891,-824.82303683,0.0001863,2]
[398018895,1765293053902,-1060.0,0.0001863,2]
[398018896,1765293053912,-500.0,0.0001863,2]
[398018897,1765293053922,-5000.0,0.0001863,2]
[398018898,1765293053934,-5000.0,0.0001863,2]
[398018899,1765293053944,-5000.0,0.0001863,2]
[398018900,1765293053955,-5000.0,0.0001863,2]
[398018901,1765293053964,-624.27070029,0.00018641,2]
[398018902,1765293053975,-2000.0,0.0001874,7]
[398018903,1765293053986,-1265.95210971,0.00018752,2]
[398018904,1765293053996,-5500.0,0.00018752,2]
[398018905,1765293054006,-5500.0,0.00018752,2]
[398018906,1765293054016,-5500.0,0.00018752,2]
[398018907,1765293054026,-5500.0,0.00018752,2]
[398018908,1765293054036,-475.0,0.00018795,2]
[398018909,1765293054045,-475.0,0.00018795,2]
[398018910,1765293054055,-475.0,0.00018795,2]
[398018911,1765293054071,-475.0,0.00018795,2]
[398018912,1765293054080,-475.0,0.00018802,2]
[398018913,1765293054090,-475.0,0.00018802,2]
[398018914,1765293054262,-302.69733596,0.000189,2]
[398018915,1765293054273,-500.0,0.00018904,2]
[398018916,1765293054283,-475.0,0.00018944,2]
[398018917,1765293054292,-475.0,0.00018944,2]
[398018918,1765293054301,-60903.21742481,0.00019,2]
[398018919,1765293066837,318.86,6.5e-05,2]
[398018929,1765293096884,161.3797359,3.251e-05,2]
[398018930,1765293141083,152.33,6.5e-05,2]
[398018931,1765293181057,5092.515951,6.044e-05,2]
[398018932,1765293194292,315.53,6.5e-05,2]
[398018933,1765293199793,617.2504811,6.017e-05,2]
[398018934,1765293244387,3974.7135679,6.523e-05,2]
[398018935,1765293244409,1025.2864321,6.523e-05,2]
[398018936,1765293266423,152.67,6.5e-05,2]
[398018937,1765293313560,312.27,6.5e-05,2]
[398018938,1765293383467,152.88,6.5e-05,2]
[398018939,1765293434572,309.08,6.5e-05,2]
[398018940,1765293461273,5000.0,6.523e-05,2]
[398018941,1765293500181,152.98,6.5e-05,2]
[398018942,1765293524778,47654.5032213,5.963e-05,2]
[398018943,1765293554419,305.96,6.5e-05,2]
[398018944,1765293561493,1000.0,6.523e-05,2]
[398018945,1765293613407,800.0,6.5e-05,2]
[398018946,1765293620737,152.98,6.5e-05,2]
[398018947,1765293674636,302.9,6.5e-05,2]
[398018948,1765293677645,5000.0,6.523e-05,2]
[398018949,1765293700017,5000.0,6.523e-05,2]
[398018951,1765293722254,5000.0,6.523e-05,2]
[398018952,1765293724056,1000.0,5.99e-05,2]
[398018953,1765293744553,5000.0,6.523e-05,2]
[398018954,1765293745731,152.89,6.5e-05,2]
[398018955,1765293767308,5000.0,6.523e-05,2]
[398018956,1765293793288,5000.0,6.523e-05,2]
[398018957,1765293795568,299.9,6.5e-05,2]
[398018958,1765293816047,5000.0,6.523e-05,2]
[398018959,1765293838398,4700.11,6.523e-05,2]
[398018960,1765293838420,299.89,6.523e-05,2]
[398018961,1765293860991,152.73,6.5e-05,2]
[398018962,1765293861294,5000.0,6.523e-05,2]
[398018964,1765293883809,4547.39,6.523e-05,2]
[398018965,1765293883831,452.61,6.523e-05,2]
[398018966,1765293906512,5000.0,6.523e-05,2]
[398018967,1765293915821,296.96,6.5e-05,2]
[398018968,1765293928534,4250.44,6.523e-05,2]
[398018969,1765293928558,749.56,6.523e-05,2]
[398018970,1765293934085,-296.96,6.6e-05,2]
[398018971,1765293934105,-1089.22992959,6.64e-05,2]
[398018972,1765293951794,5000.0,6.523e-05,2]
[398018973,1765293974288,4250.45,6.523e-05,2]
[398018974,1765293974312,749.55,6.523e-05,2]
[398018975,1765293979954,152.3,6.5e-05,2]
[398018977,1765293997025,5000.0,6.523e-05,2]
[398018978,1765294019869,4098.16,6.523e-05,2]
[398018979,1765294019894,901.84,6.523e-05,2]
[398018980,1765294034130,-161.30995212,6.64e-05,2]
[398018981,1765294035745,288.13,6.5e-05,2]
[398018982,1765294042093,-288.13,6.6e-05,2]
[398018983,1765294042116,-45.70818965,6.64e-05,2]
[398018984,1765294043599,5000.0,6.523e-05,2]
[398018985,1765294046104,-1308.17646241,6.64e-05,2]
[398018986,1765294066532,5000.0,6.523e-05,2]
[398018987,1765294088885,5000.0,6.523e-05,2]
[398018989,1765294099016,151.54,6.5e-05,2]
[398018991,1765294112036,5000.0,6.523e-05,2]
[398018992,1765294134814,5000.0,6.523e-05,2]
[398018993,1765294157254,5000.0,6.523e-05,2]
[398018994,1765294158976,279.63,6.5e-05,2]
[398018999,1765294179968,5000.0,6.523e-05,2]
[398019000,1765294202944,5000.0,6.523e-05,2]
[398019001,1765294225134,5000.0,6.523e-05,2]
[398019004,1765294231998,151.01,6.5e-05,2]
[398019031,1765294232502,-395.57546623,6.64e-05,2]
[398019032,1765294232512,-280.6358926,6.658e-05,2]
[398019034,1765294232523,-300.0,6.879e-05,2]
[398019037,1765294232537,-300.0,6.879e-05,2]
[398019038,1765294232550,-300.0,6.879e-05,2]
[398019040,1765294232562,-571.0,6.879e-05,2]
[398019041,1765294232572,-300.0,6.879e-05,2]
[398019043,1765294232583,-4538.97872835,6.88e-05,2]
[398019045,1765294232595,-53817.33191455,6.88e-05,2]
[398019046,1765294232623,-151.01,6.6e-05,2]
[398019047,1765294232633,-919.33651481,6.88e-05,2]
[398019058,1765294238518,-151.01,6.7e-05,2]
[398019059,1765294238528,-151.01,6.8e-05,2]
[398019060,1765294238537,-395.65815479,6.879e-05,2]
[398019061,1765294238548,-500.0,6.879e-05,2]
[398019062,1765294238560,-500.0,6.879e-05,2]
[398019063,1765294238569,-353.44750078,6.879e-05,2]
[398019064,1765294238578,-500.0,6.879e-05,2]
[398019065,1765294238587,-500.0,6.879e-05,2]
[398019066,1765294238596,-500.0,6.879e-05,2]
[398019067,1765294238606,-500.0,6.879e-05,2]
[398019068,1765294238615,-301.96855043,6.879e-05,2]
[398019069,1765294238625,-6456.9898141,6.88e-05,2]
[398019070,1765294238648,-890.79079948,6.88e-05,2]
[398019071,1765294238659,-446.03775753,6.88e-05,2]
[398019072,1765294238671,-455.70417096,6.88e-05,2]
[398019073,1765294238682,-302.0,6.88e-05,2]
[398019118,1765294243072,-841.52588397,6.88e-05,2]
[398019120,1765294243085,-254.01130894,6.88e-05,2]
[398019123,1765294243103,-1553.17549407,6.88e-05,2]
[398019137,1765294243220,-3261.65786044,6.88e-05,2]
[398019200,1765294243838,-5952.56395994,6.88e-05,2]
[398019218,1765294246500,-744.58251525,6.88e-05,2]
[398019219,1765294246854,-3104.45798045,6.88e-05,2]
[398019220,1765294246872,-802.84844993,6.88e-05,2]
[398019221,1765294277744,257.82,6.5e-05,2]
[398019222,1765294349037,244.2,6.5e-05,2]
[398019223,1765294400288,316.67,6.5e-05,2]
[398019224,1765294441474,5000.0,6.523e-05,2]
[398019225,1765294460300,245.65,6.5e-05,2]
[398019226,1765294520950,315.25,6.5e-05,2]
[398019227,1765294563576,7639.55659,5.943e-05,2]
[398019228,1765294579360,247.04,6.5e-05,2]
[398019229,1765294639850,313.89,6.5e-05,2]
[398019230,1765294656972,5000.0,6.523e-05,2]
[398019231,1765294679796,5000.0,6.523e-05,2]
[398019232,1765294681103,172.33448033,0.0002,120]
[398019233,1765294681332,300.0,0.00010295,120]
[398019234,1765294683083,300.0,0.00010295,120]
[398019235,1765294702065,5000.0,6.523e-05,2]
[398019236,1765294703686,248.37,6.5e-05,2]
[398019237,1765294725535,5000.0,6.523e-05,2]
[398019238,1765294748204,5000.0,6.523e-05,2]
[398019239,1765294759585,312.58,6.5e-05,2]
[398019240,1765294770743,5000.0,6.523e-05,2]
[398019241,1765294793351,5000.0,6.523e-05,2]
[398019242,1765294815837,5000.0,6.523e-05,2]
[398019243,1765294820952,249.66,6.5e-05,2]
[398019244,1765294838573,5000.0,6.523e-05,2]
[398019245,1765294860753,5000.0,6.523e-05,2]
[398019246,1765294882713,311.32,6.5e-05,2]
[398019247,1765294883204,5000.0,6.523e-05,2]
[398019248,1765294905432,5000.0,6.523e-05,2]
[398019249,1765294928174,5000.0,6.523e-05,2]
[398019250,1765294939451,250.89,6.5e-05,2]
[398019251,1765294950415,5000.0,6.523e-05,2]
[398019252,1765294972645,5000.0,6.523e-05,2]
[398019253,1765294995267,852.88979866,6.523e-05,2]
[398019254,1765295001582,310.11,6.5e-05,2]
[398019255,1765295066695,252.08,6.5e-05,2]
[398019256,1765295083313,5000.0,6.523e-05,2]
[398019257,1765295091148,5000.0,6.523e-05,2]
[398019258,1765295106789,5000.0,6.523e-05,2]
[398019259,1765295115128,5000.0,6.523e-05,2]
[398019261,1765295119234,308.95,6.5e-05,2]
[398019262,1765295130918,1057.65236728,6.523e-05,2]
[398019263,1765295138710,4180.21816454,6.523e-05,2]
[398019264,1765295140094,-308.95,6.6e-05,2]
[398019265,1765295140113,-329.79068033,6.625e-05,2]
[398019266,1765295140132,-515.0,6.65e-05,2]
[398019267,1765295140152,-64.99770937,6.7e-05,2]
[398019268,1765295149382,3303.34,6.6e-05,10]
[398019269,1765295158893,270.3372485,5.971e-05,2]
[398019270,1765295161864,1111.03650262,6.523e-05,2]
[398019271,1765295178974,260.69,6.5e-05,2]
[398019272,1765295241007,300.51,6.5e-05,2]
[398019273,1765295298395,267.69,6.5e-05,2]
[398019274,1765295337698,10000.0,0.0002,120]
[398019275,1765295348332,5000.0,6.523e-05,2]
[398019276,1765295358983,9322.0,0.00014,30]
[398019277,1765295359356,299.86,6.5e-05,2]
[398019278,1765295370626,4432.46,6.523e-05,2]
[398019279,1765295370650,567.54,6.523e-05,2]
[398019280,1765295392754,5000.0,6.523e-05,2]
[398019281,1765295399060,189.60230385,0.0002,120]
[398019282,1765295415102,741.95841965,6.523e-05,2]
[398019283,1765295429160,268.33,6.5e-05,2]
[398019328,1765295432672,-1200.0,6.599e-05,2]
[398019330,1765295432681,-126.0,6.599e-05,2]
[398019332,1765295432696,-174.0,6.599e-05,2]
[398019334,1765295432706,-250.0,6.599e-05,3]
[398019336,1765295432715,-300.0,6.599e-05,2]
[398019338,1765295432727,-300.0,6.599e-05,2]
[398019340,1765295432736,-223.14197923,6.599e-05,2]
[398019347,1765295432758,-76.85802077,6.599e-05,2]
[398019350,1765295432767,-514.0,6.599e-05,2]
[398019353,1765295432777,-1200.0,6.599e-05,2]
[398019355,1765295432786,-12611.74800272,6.6e-05,2]
[398019357,1765295432795,-268.33,6.6e-05,2]
[398019359,1765295432804,-350.27404093,6.691e-05,2]
[398019361,1765295432813,-268.33,6.7e-05,2]
[398019363,1765295432822,-600.0,6.749e-05,2]
[398019365,1765295432832,-800.0,6.759e-05,2]
[398019367,1765295432841,-1000.0,6.8e-05,2]
[398019369,1765295432851,-10841.59874229,6.8e-05,2]
[398019371,1765295432860,-268.33,6.8e-05,2]
[398019373,1765295432869,-298.77155984,6.823e-05,2]
[398019375,1765295432879,-183.0,6.879e-05,2]
[398019377,1765295432888,-500.0,6.879e-05,2]
[398019379,1765295432897,-395.46441428,6.879e-05,2]
[398019381,1765295432906,-614.70785119,6.879e-05,2]
[398019383,1765295432915,-500.0,6.879e-05,2]
[398019385,1765295432924,-500.0,6.879e-05,2]
[398019387,1765295432933,-500.0,6.879e-05,2]
[398019389,1765295432944,-500.0,6.879e-05,2]
[398019392,1765295432954,-507.31834028,6.879e-05,2]
[398019394,1765295432963,-500.0,6.879e-05,2]
[398019396,1765295432981,-500.0,6.879e-05,2]
[398019398,1765295432992,-500.0,6.879e-05,2]
[398019400,1765295433002,-500.0,6.879e-05,2]
[398019402,1765295433013,-500.0,6.879e-05,2]
[398019404,1765295433023,-500.0,6.879e-05,2]
[398019406,1765295433033,-500.0,6.879e-05,2]
[398019408,1765295433045,-500.0,6.879e-05,2]
[398019410,1765295433056,-500.0,6.879e-05,2]
[398019412,1765295433066,-500.0,6.879e-05,2]
[398019414,1765295433076,-500.0,6.879e-05,2]
[398019416,1765295433086,-500.0,6.879e-05,2]
[398019418,1765295433096,-500.0,6.879e-05,2]
[398019420,1765295433106,-500.0,6.879e-05,2]
[398019422,1765295433116,-500.0,6.879e-05,2]
[398019424,1765295433125,-500.0,6.879e-05,2]
[398019426,1765295433135,-500.0,6.879e-05,2]
[398019428,1765295433145,-500.0,6.879e-05,2]
[398019430,1765295433155,-500.0,6.879e-05,2]
[398019431,1765295433166,-500.0,6.879e-05,2]
[398019434,1765295433178,-209.86649776,6.879e-05,2]
[398019436,1765295433194,-500.0,6.879e-05,2]
[398019438,1765295433208,-500.0,6.879e-05,2]
[398019440,1765295433220,-500.0,6.879e-05,2]
[398019442,1765295433237,-500.0,6.879e-05,2]
[398019444,1765295433250,-337.22985338,6.879e-05,2]
[398019446,1765295433264,-162.77014662,6.879e-05,2]
[398019448,1765295433274,-500.0,6.879e-05,2]
[398019450,1765295433284,-500.0,6.879e-05,2]
[398019452,1765295433295,-500.0,6.879e-05,2]
[398019454,1765295433305,-500.0,6.879e-05,2]
[398019456,1765295433315,-500.0,6.879e-05,2]
[398019458,1765295433326,-500.0,6.879e-05,2]
[398019460,1765295433336,-500.0,6.879e-05,2]
[398019463,1765295433347,-500.0,6.879e-05,2]
[398019465,1765295433358,-500.0,6.879e-05,2]
[398019467,1765295433368,-500.0,6.879e-05,2]
[398019469,1765295433378,-500.0,6.879e-05,2]
[398019471,1765295433387,-500.0,6.879e-05,2]
[398019473,1765295433397,-500.0,6.879e-05,2]
[398019475,1765295433406,-500.0,6.879e-05,2]
[398019477,1765295433416,-500.0,6.879e-05,2]
[398019479,1765295433425,-500.0,6.879e-05,2]
[398019481,1765295433435,-500.0,6.879e-05,2]
[398019482,1765295433444,-500.0,6.879e-05,2]
[398019484,1765295433455,-166.9678466,6.879e-05,2]
[398019486,1765295433466,-500.0,6.879e-05,2]
[398019488,1765295433482,-500.0,6.879e-05,2]
[398019489,1765295433492,-500.0,6.879e-05,2]
[398019491,1765295433501,-500.0,6.879e-05,2]
[398019492,1765295433511,-500.0,6.879e-05,2]
[398019494,1765295433520,-500.0,6.879e-05,2]
[398019495,1765295433529,-500.0,6.879e-05,2]
[398019496,1765295433538,-500.0,6.879e-05,2]
[398019497,1765295433547,-500.0,6.879e-05,2]
[398019498,1765295433556,-500.0,6.879e-05,2]
[398019499,1765295433566,-500.0,6.879e-05,2]
[398019500,1765295433576,-500.0,6.879e-05,2]
[398019501,1765295433585,-250.0,6.879e-05,2]
[398019502,1765295433595,-199.79,6.879e-05,2]
[398019503,1765295433604,-1000.0,6.88e-05,2]
[398019504,1765295433614,-713.28385733,6.88e-05,2]
[398019505,1765295433624,-1000.0,6.9e-05,2]
[398019506,1765295433635,-268.33,6.9e-05,2]
[398019507,1765295433645,-268.33,7e-05,2]
[398019508,1765295433655,-296.58,7.027e-05,2]
[398019509,1765295433665,-268.33,7.1e-05,2]
[398019510,1765295433675,-300.0,7.118e-05,2]
[398019511,1765295433684,-300.0,7.118e-05,2]
[398019512,1765295433693,-300.0,7.118e-05,2]
[398019513,1765295433703,-300.0,7.118e-05,2]
[398019514,1765295433712,-300.0,7.118e-05,2]
[398019515,1765295433724,-300.0,7.118e-05,2]
[398019516,1765295433733,-300.0,7.118e-05,2]
[398019517,1765295433743,-300.0,7.118e-05,2]
[398019518,1765295433754,-300.0,7.118e-05,2]
[398019519,1765295433763,-300.0,7.118e-05,2]
[398019520,1765295433773,-300.0,7.118e-05,2]
[398019521,1765295433783,-300.0,7.118e-05,2]
[398019522,1765295433792,-300.0,7.118e-05,2]
[398019523,1765295433801,-300.0,7.118e-05,2]
[398019524,1765295433811,-300.0,7.118e-05,2]
[398019525,1765295433821,-2469.84848251,7.15e-05,2]
[398019526,1765295433830,-199.8,7.153e-05,2]
[398019527,1765295433840,-268.33,7.2e-05,2]
[398019528,1765295433849,-600.0,7.259e-05,2]
[398019529,1765295433859,-1680.0,7.259e-05,2]
[398019530,1765295433868,-300.0,7.259e-05,2]
[398019531,1765295433878,-300.0,7.259e-05,2]
[398019532,1765295433887,-420.0,7.259e-05,2]
[398019533,1765295433898,-420.0,7.259e-05,2]
[398019534,1765295433907,-1680.0,7.259e-05,2]
[398019535,1765295433916,-268.33,7.3e-05,2]
[398019536,1765295433926,-3659.84176861,7.312e-05,2]
[398019537,1765295433936,-3659.84176861,7.413e-05,2]
[398019538,1765295433946,-2469.84848251,7.49e-05,2]
[398019539,1765295433956,-593.15,7.666e-05,2]
[398019540,1765295433965,-656.82699289,7.705e-05,2]
[398019541,1765295433980,-282.93,7.728e-05,2]
[398019542,1765295433991,-347.30356795,7.829e-05,2]
[398019543,1765295434001,-3659.84176862,7.838e-05,2]
[398019544,1765295434010,-2469.84848251,7.906e-05,2]
[398019545,1765295434020,-500.0,7.97e-05,2]
[398019546,1765295434030,-720.0,7.985e-05,2]
[398019547,1765295434040,-2351.0,7.985e-05,2]
[398019548,1765295434049,-587.0,7.985e-05,2]
[398019549,1765295434059,-180.0,7.985e-05,2]
[398019550,1765295434069,-1496.61327384,7.985e-05,2]
[398019573,1765295439199,-268.33,7.4e-05,2]
[398019575,1765295439208,-268.33,7.5e-05,2]
[398019577,1765295439217,-17.92286843,7.6e-05,2]
[398019579,1765295439232,-250.40713157,7.6e-05,2]
[398019581,1765295439242,-268.33,7.6e-05,2]
[398019583,1765295439252,-268.33,7.7e-05,2]
[398019585,1765295439261,-268.33,7.8e-05,2]
[398019587,1765295439270,-62.51840759,7.9e-05,2]
[398019589,1765295439281,-205.81159241,7.9e-05,2]
[398019591,1765295439291,-854.38672616,7.985e-05,2]
[398019593,1765295439300,-322.61122853,7.993e-05,2]
[398019595,1765295439311,-334.21576436,7.993e-05,2]
[398019597,1765295439321,-268.33,8e-05,2]
[398019599,1765295439330,-14722.19013197,8.003e-05,2]
[398019601,1765295439342,-4897.25569245,8.003e-05,2]
[398019604,1765295439352,-1664.24520114,8.003e-05,2]
[398019606,1765295439363,-944.52741498,8.003e-05,2]
[398019611,1765295439392,-85269.29580253,8.003e-05,2]
[398019613,1765295439403,-4777.94391134,8.003e-05,2]
[398019626,1765295441152,-160.0,7.829e-05,2]
[398019627,1765295441162,-18120.0,8.003e-05,2]
[398019629,1765295441174,-272.33990001,8.003e-05,2]
[398019655,1765295443874,-758542.08229056,8.003e-05,2]
[398019658,1765295443885,-790.11965502,8.003e-05,2]
[398019660,1765295443895,-2469.84848251,8.037e-05,2]
[398019662,1765295443904,-39164.17745054,8.1e-05,2]
[398019664,1765295443914,-268.33,8.1e-05,2]
[398019666,1765295443923,-30714.1240871,8.103e-05,2]
[398019668,1765295443933,-268.33,8.2e-05,2]
[398019670,1765295443942,-1534.79,8.219e-05,2]
[398019672,1765295443952,-1534.79,8.219e-05,2]
[398019674,1765295443962,-1534.79,8.219e-05,2]
[398019676,1765295443974,-1534.79,8.219e-05,2]
[398019678,1765295443986,-500.0,8.219e-05,2]
[398019680,1765295443995,-500.0,8.219e-05,2]
[398019682,1765295444004,-430.52272158,8.219e-05,2]
[398019684,1765295444014,-395.7618194,8.229e-05,2]
[398019686,1765295444023,-656.82699289,8.28e-05,2]
[398019687,1765295444031,-1534.79,8.299e-05,2]
[398019689,1765295444043,-2469.84848251,8.299e-05,2]
[398019691,1765295444052,-500.0,8.3e-05,2]
[398019694,1765295444062,-268.33,8.3e-05,2]
[398019695,1765295444071,-268.33,8.4e-05,2]
[398019697,1765295444080,-500.0,8.493e-05,2]
[398019700,1765295444090,-268.33,8.5e-05,2]
[398019701,1765295444100,-656.82699289,8.567e-05,2]
[398019703,1765295444109,-1000.0,8.6e-05,2]
[398019706,1765295444119,-268.33,8.6e-05,2]
[398019708,1765295444132,-413.3233683,8.691e-05,2]
[398019709,1765295444141,-268.33,8.7e-05,2]
[398019712,1765295444151,-2469.84848251,8.703e-05,2]
[398019713,1765295444160,-500.0,8.767e-05,2]
[398019716,1765295444171,-3292.0,8.783e-05,2]
[398019718,1765295444180,-823.0,8.783e-05,2]
[398019720,1765295444189,-864.0,8.784e-05,2]
[398019722,1765295444198,-268.33,8.8e-05,2]
[398019724,1765295444208,-2469.84848251,8.807e-05,2]
[398019726,1765295444217,-657.48381989,8.855e-05,2]
[398019728,1765295444226,-268.33,8.9e-05,2]
[398019730,1765295444239,-268.33,9e-05,2]
[398019732,1765295444248,-268.33,9e-05,2]
[398019734,1765295444258,-500.0,9.041e-05,2]
[398019736,1765295444267,-268.33,9.1e-05,2]
[398019738,1765295444276,-1534.79,9.188e-05,2]
[398019740,1765295444285,-268.33,9.2e-05,2]
[398019741,1765295444295,-1009.0,9.27e-05,2]
[398019743,1765295444304,-268.33,9.3e-05,2]
[398019745,1765295444313,-2469.84848251,9.309e-05,2]
[398019747,1765295444322,-500.0,9.315e-05,2]
[398019749,1765295444332,-346.26093075,9.364e-05,2]
[398019752,1765295444341,-268.33,9.4e-05,2]
[398019753,1765295444350,-186.79368335,9.448e-05,2]
[398019755,1765295444360,-268.33,9.5e-05,2]
[398019757,1765295444369,-500.0,9.589e-05,2]
[398019759,1765295444379,-268.33,9.6e-05,2]
[398019761,1765295444388,-1000.0,9.662e-05,2]
[398019763,1765295444399,-1114.0,9.662e-05,2]
[398019765,1765295444407,-284.0,9.662e-05,2]
[398019767,1765295444416,-268.33,9.7e-05,2]
[398019769,1765295444426,-268.33,9.8e-05,2]
[398019771,1765295444435,-500.0,9.863e-05,2]
[398019773,1765295444445,-268.33,9.9e-05,2]
[398019775,1765295444454,-1534.79,9.999e-05,2]
[398019777,1765295444464,-1500.0,0.0001,2]
[398019779,1765295444474,-5000.0,0.0001,2]
[398019782,1765295444486,-10000.0,0.0001,2]
[398019784,1765295444495,-151.0,0.0001,2]
[398019786,1765295444505,-268.33,0.0001,2]
[398019788,1765295444514,-268.33,0.000101,2]
[398019790,1765295444523,-531.7298003,0.00010137,2]
[398019791,1765295444532,-268.33,0.000102,2]
[398019793,1765295444542,-631.0,0.00010364,2]
[398019795,1765295444551,-2156.0,0.00010364,2]
[398019797,1765295444561,-1360.0,0.00010364,2]
[398019799,1765295444571,-151.0,0.00010548,2]
[398019801,1765295444581,-423.29898615,0.00010618,2]
[398019803,1765295444591,-1534.79,0.00010627,2]
[398019805,1765295444601,-1000.0,0.00010628,2]
[398019807,1765295444610,-244.0,0.00010628,2]
[398019809,1765295444620,-476.37269567,0.00010691,2]
[398019811,1765295444629,-2076.03,0.00010828,2]
[398019813,1765295444639,-1534.79,0.00010957,2]
[398019815,1765295444649,-1534.79,0.00010958,2]
[398019817,1765295444658,-1534.79,0.00010958,2]
[398019819,1765295444668,-22703.4057973,0.00010959,2]
[398019821,1765295444677,-999.0,0.00010959,2]
[398019823,1765295444686,-500.0,0.00010959,2]
[398019825,1765295444696,-500.0,0.00010959,2]
[398019827,1765295444705,-500.0,0.00010959,2]
[398019829,1765295444714,-500.0,0.00010959,2]
[398019830,1765295444723,-500.0,0.00010959,2]
[398019833,1765295444736,-500.0,0.00010959,2]
[398019834,1765295444746,-500.0,0.00010959,2]
[398019836,1765295444755,-500.0,0.00010959,2]
[398019839,1765295444765,-500.0,0.00010959,2]
[398019841,1765295444775,-500.0,0.00010959,2]
[398019842,1765295444785,-500.0,0.00010959,2]
[398019844,1765295444794,-500.0,0.00010959,2]
[398019847,1765295444803,-151.0,0.00011,2]
[398019848,1765295444812,-151.0,0.00011,2]
[398019850,1765295444822,-151.0,0.00011,2]
[398019853,1765295444831,-151.0,0.00011,2]
[398019855,1765295444840,-151.0,0.00011096,2]
[398019857,1765295444850,-1534.79,0.00011299,2]
[398019859,1765295444859,-151.0,0.000113,2]
[398019861,1765295444873,-151.0,0.000113,2]
[398019863,1765295444886,-151.0,0.000113,2]
[398019865,1765295444895,-2372.61,0.00011465,2]
[398019867,1765295444904,-151.0,0.000115,2]
[398019869,1765295444914,-151.0,0.00011533,2]
[398019871,1765295444923,-499.0,0.00011533,2]
[398019873,1765295444937,-297.07063086,0.00011533,2]
[398019874,1765295444948,-500.0,0.00011533,2]
[398019876,1765295444963,-500.0,0.00011533,2]
[398019879,1765295444973,-151.0,0.00011533,2]
[398019880,1765295444984,-151.0,0.00011533,2]
[398019882,1765295444995,-151.0,0.00011533,2]
[398019884,1765295445005,-151.0,0.00011533,2]
[398019886,1765295445015,-500.0,0.00011533,2]
[398019888,1765295445024,-500.0,0.00011533,2]
[398019890,1765295445035,-210.49462607,0.00011533,2]
[398019892,1765295445044,-151.41031044,0.00011533,2]
[398019894,1765295445054,-500.0,0.00011533,2]
[398019896,1765295445063,-151.60996163,0.00011533,2]
[398019898,1765295445073,-151.0,0.000116,2]
[398019900,1765295445083,-151.0,0.000116,2]
[398019902,1765295445092,-151.0,0.00011644,2]
[398019903,1765295445101,-151.0,0.0001167,2]